[Event "*** Titled Tuesday Blitz"]
[Site "Chess.com"]
[Date "2021.03.09"]
[Round "10"]
[White "ChampStan"]
[Black "beautroll"]
[Result "1-0"]
[WhiteElo "2069"]
[BlackElo "2430"]
[TimeControl "180+1"]
[EndTime "12:00:37 PST"]
[Termination "ChampStan won by resignation"]

1. d4 {[%clk 0:03:00.9]} 1... Nf6 {[%clk 0:02:58.9]} 2. c4 {[%clk 0:02:59.9]}
2... g6 {[%clk 0:02:58.8]} 3. Nf3 {[%clk 0:02:59.2]} 3... Bg7 {[%clk 0:02:58.3]}
4. g3 {[%clk 0:02:59.7]} 4... O-O {[%clk 0:02:58.2]} 5. Bg2 {[%clk 0:03:00.4]}
5... Nc6 {[%clk 0:02:58.4]} 6. O-O {[%clk 0:03:00.8]} 6... d5 {[%clk 0:02:58.6]}
7. cxd5 {[%clk 0:03:01.3]} 7... Nxd5 {[%clk 0:02:59.5]} 8. Nc3 {[%clk
0:03:01.7]} 8... Nb6 {[%clk 0:02:59.4]} 9. d5 {[%clk 0:03:00.2]} 9... Na5 {[%clk
0:02:59.2]} 10. Qc2 {[%clk 0:03:00.7]} 10... Nac4 {[%clk 0:02:38.6]} 11. Rd1
{[%clk 0:02:52.5]} 11... Bg4 {[%clk 0:02:22.6]} 12. h3 {[%clk 0:02:48.7]} 12...
Bxf3 {[%clk 0:02:20.8]} 13. Bxf3 {[%clk 0:02:49.4]} 13... Qd7 {[%clk 0:02:17.1]}
14. Bg2 {[%clk 0:02:48.2]} 14... Rfd8 {[%clk 0:02:12.9]} 15. b3 {[%clk
0:02:46.8]} 15... Nd6 {[%clk 0:02:05.6]} 16. Bb2 {[%clk 0:02:45.6]} 16... e6
{[%clk 0:02:01.4]} 17. e3 {[%clk 0:02:37.9]} 17... exd5 {[%clk 0:02:00.2]} 18.
Nxd5 {[%clk 0:02:36.3]} 18... Nxd5 {[%clk 0:02:00.1]} 19. Rxd5 {[%clk
0:02:31.2]} 19... Qe6 {[%clk 0:01:53]} 20. Rad1 {[%clk 0:02:24.5]} 20... Bxb2
{[%clk 0:01:47.9]} 21. Qxb2 {[%clk 0:02:23.6]} 21... a5 {[%clk 0:01:48.4]} 22.
h4 {[%clk 0:02:19.4]} 22... h5 {[%clk 0:01:45]} 23. Qc3 {[%clk 0:02:12.4]} 23...
Qe7 {[%clk 0:01:32.2]} 24. Rxa5 {[%clk 0:02:05.5]} 24... Ne4 {[%clk 0:01:16.4]}
25. Rxa8 {[%clk 0:02:01.1]} 25... Nxc3 {[%clk 0:01:11.8]} 26. Raxd8+ {[%clk
0:01:32.5]} 26... Kg7 {[%clk 0:01:11.3]} 27. R1d7 {[%clk 0:01:33]} 27... Qa3
{[%clk 0:01:02.7]} 28. Rxc7 {[%clk 0:01:25.7]} 28... Qxa2 {[%clk 0:00:52.8]} 29.
Rdd7 {[%clk 0:01:20.5]} 29... Qb1+ {[%clk 0:00:47.3]} 30. Kh2 {[%clk 0:01:18.8]}
30... Qxb3 {[%clk 0:00:45.4]} 31. Rxb7 {[%clk 0:01:16.5]} 31... Qe6 {[%clk
0:00:45.1]} 32. Rxf7+ {[%clk 0:01:07.5]} 32... Qxf7 {[%clk 0:00:44.1]} 33. Rxf7+
{[%clk 0:01:07.9]} 33... Kxf7 {[%clk 0:00:45]} 34. Bc6 {[%clk 0:01:04.5]} 34...
Kf6 {[%clk 0:00:38.1]} 35. f4 {[%clk 0:00:57]} 35... Kf5 {[%clk 0:00:27.1]} 36.
Kg2 {[%clk 0:00:54.2]} 36... Ke6 {[%clk 0:00:25.2]} 37. Kf3 {[%clk 0:00:52.5]}
37... Nd1 {[%clk 0:00:20.4]} 38. Ke2 {[%clk 0:00:47.5]} 38... Nc3+ {[%clk
0:00:16.5]} 39. Kd3 {[%clk 0:00:47.2]} 39... Nd1 {[%clk 0:00:16.4]} 40. Kd2
{[%clk 0:00:36.9]} 40... Nf2 {[%clk 0:00:15.7]} 41. Ke2 {[%clk 0:00:34.3]} 41...
Ng4 {[%clk 0:00:14.2]} 42. Be8 {[%clk 0:00:25.5]} 42... Kf6 {[%clk 0:00:13.1]}
43. Bd7 {[%clk 0:00:25.7]} 43... Nh6 {[%clk 0:00:12.5]} 44. e4 {[%clk
0:00:25.7]} 44... Ke7 {[%clk 0:00:11.9]} 45. Ba4 {[%clk 0:00:23.7]} 45... Nf7
{[%clk 0:00:11.7]} 46. e5 {[%clk 0:00:21.9]} 46... Nd8 {[%clk 0:00:10.9]} 47.
Bb3 {[%clk 0:00:21.1]} 47... Nc6 {[%clk 0:00:10.1]} 48. Ke3 {[%clk 0:00:21.4]}
48... Nb4 {[%clk 0:00:10]} 49. Kd4 {[%clk 0:00:19.9]} 49... Nc6+ {[%clk
0:00:09.3]} 50. Kc5 {[%clk 0:00:19.4]} 50... Nd8 {[%clk 0:00:06.8]} 51. Bd5
{[%clk 0:00:19]} 51... Kd7 {[%clk 0:00:05.6]} 52. Kb6 {[%clk 0:00:18.2]} 52...
Ke7 {[%clk 0:00:04.9]} 53. Kc7 {[%clk 0:00:18.4]} 53... Ke8 {[%clk 0:00:04.1]}
54. Kd6 {[%clk 0:00:17.7]} 54... Kf8 {[%clk 0:00:01.4]} 55. Kd7 {[%clk
0:00:17.9]} 55... Nf7 {[%clk 0:00:01.6]} 56. e6 {[%clk 0:00:18.1]} 1-0

[Event "*** Titled Tuesday Blitz"]
[Site "Chess.com"]
[Date "2021.03.09"]
[Round "10"]
[White "NiranjanNavalgund"]
[Black "davidkalashian"]
[Result "1-0"]
[WhiteElo "2468"]
[BlackElo "2569"]
[TimeControl "180+1"]
[EndTime "12:00:38 PST"]
[Termination "NiranjanNavalgund won on time"]

1. e3 {[%clk 0:02:28.8]} 1... Nf6 {[%clk 0:02:57.2]} 2. d4 {[%clk 0:02:28.6]}
2... e6 {[%clk 0:02:54.8]} 3. Nf3 {[%clk 0:02:28.3]} 3... b6 {[%clk 0:02:54.4]}
4. Bd3 {[%clk 0:02:28.6]} 4... Bb7 {[%clk 0:02:53.4]} 5. O-O {[%clk 0:02:29.5]}
5... Be7 {[%clk 0:02:53.5]} 6. c4 {[%clk 0:02:30]} 6... O-O {[%clk 0:02:53.8]}
7. Nc3 {[%clk 0:02:30.6]} 7... d5 {[%clk 0:02:52.9]} 8. cxd5 {[%clk 0:02:30.9]}
8... exd5 {[%clk 0:02:51.2]} 9. b3 {[%clk 0:02:26.1]} 9... a6 {[%clk 0:02:51.5]}
10. Bb2 {[%clk 0:02:26.4]} 10... Nbd7 {[%clk 0:02:51.9]} 11. Rc1 {[%clk
0:02:26.9]} 11... Bd6 {[%clk 0:02:52.1]} 12. Ne2 {[%clk 0:02:25.9]} 12... Re8
{[%clk 0:02:52]} 13. Ng3 {[%clk 0:02:12.4]} 13... Ne4 {[%clk 0:02:50.6]} 14. Nd2
{[%clk 0:02:05.4]} 14... Ndf6 {[%clk 0:02:46.8]} 15. Nf5 {[%clk 0:01:59.8]}
15... Bf8 {[%clk 0:02:36.8]} 16. f3 {[%clk 0:01:56.5]} 16... Nxd2 {[%clk
0:02:34.3]} 17. Qxd2 {[%clk 0:01:57.4]} 17... g6 {[%clk 0:02:34.1]} 18. Ng3
{[%clk 0:01:57.5]} 18... Bh6 {[%clk 0:02:34.1]} 19. f4 {[%clk 0:01:57.8]} 19...
Ng4 {[%clk 0:02:29.8]} 20. Rce1 {[%clk 0:01:52.3]} 20... Qh4 {[%clk 0:02:20.8]}
21. h3 {[%clk 0:01:49.8]} 21... Qxg3 {[%clk 0:02:18.4]} 22. hxg4 {[%clk
0:01:48.7]} 22... Qxg4 {[%clk 0:02:17.7]} 23. Rf3 {[%clk 0:01:42.3]} 23... Bg7
{[%clk 0:02:04.5]} 24. f5 {[%clk 0:01:36]} 24... Bh6 {[%clk 0:02:01.9]} 25. Qf2
{[%clk 0:01:23]} 25... Kh8 {[%clk 0:01:13]} 26. Rh3 {[%clk 0:01:01.1]} 26... Bg7
{[%clk 0:01:02.7]} 27. f6 {[%clk 0:00:38.7]} 27... Bf8 {[%clk 0:00:53]} 28. Rg3
{[%clk 0:00:35.5]} 28... Qh4 {[%clk 0:00:48]} 29. Rh3 {[%clk 0:00:27.4]} 29...
Qxf2+ {[%clk 0:00:46.5]} 30. Kxf2 {[%clk 0:00:28.3]} 30... Re6 {[%clk 0:00:47]}
31. Rf3 {[%clk 0:00:25.5]} 31... Rae8 {[%clk 0:00:42.1]} 32. g4 {[%clk
0:00:25.3]} 32... Bh6 {[%clk 0:00:35.7]} 33. Bc1 {[%clk 0:00:22.4]} 33... Bg5
{[%clk 0:00:35]} 34. Bd2 {[%clk 0:00:19.7]} 34... Bh4+ {[%clk 0:00:31.3]} 35.
Ke2 {[%clk 0:00:19.2]} 35... Rxf6 {[%clk 0:00:20]} 36. Rxf6 {[%clk 0:00:18.9]}
36... Bxf6 {[%clk 0:00:20.9]} 37. Rf1 {[%clk 0:00:17.5]} 37... Kg7 {[%clk
0:00:21.1]} 38. Kf3 {[%clk 0:00:16.2]} 38... c5 {[%clk 0:00:20.5]} 39. dxc5
{[%clk 0:00:15]} 39... d4+ {[%clk 0:00:20.3]} 40. e4 {[%clk 0:00:14.9]} 40...
bxc5 {[%clk 0:00:20.2]} 41. Rc1 {[%clk 0:00:15.5]} 41... Be7 {[%clk 0:00:18.9]}
42. b4 {[%clk 0:00:14.4]} 42... cxb4 {[%clk 0:00:17]} 43. Rc7 {[%clk 0:00:14.2]}
43... Ba8 {[%clk 0:00:17.5]} 44. Bf4 {[%clk 0:00:12.1]} 44... Bf8 {[%clk
0:00:15.4]} 45. Bc4 {[%clk 0:00:10.7]} 45... Bxe4+ {[%clk 0:00:14.5]} 46. Kf2
{[%clk 0:00:09.9]} 46... Re7 {[%clk 0:00:13.9]} 47. Rc8 {[%clk 0:00:08.6]} 47...
Rd7 {[%clk 0:00:09.8]} 48. g5 {[%clk 0:00:06.5]} 48... Bd6 {[%clk 0:00:08.8]}
49. Bd2 {[%clk 0:00:06.1]} 49... Be7 {[%clk 0:00:07]} 50. Bxa6 {[%clk
0:00:06.1]} 50... f5 {[%clk 0:00:05.1]} 51. Bb5 {[%clk 0:00:05.7]} 51... Rd6
{[%clk 0:00:03.1]} 52. Bxb4 {[%clk 0:00:03.6]} 52... Re6 {[%clk 0:00:02]} 53.
Bd2 {[%clk 0:00:02.7]} 53... d3 {[%clk 0:00:01.5]} 54. Bc4 {[%clk 0:00:02.9]}
1-0

[Event "*** Titled Tuesday Blitz"]
[Site "Chess.com"]
[Date "2021.03.09"]
[Round "10"]
[White "TimKett"]
[Black "A-S-00"]
[Result "0-1"]
[WhiteElo "2194"]
[BlackElo "2372"]
[TimeControl "180+1"]
[EndTime "12:00:39 PST"]
[Termination "A-S-00 won on time"]

1. e4 {[%clk 0:03:00.9]} 1... c5 {[%clk 0:02:58.4]} 2. Nf3 {[%clk 0:03:00.1]}
2... Nc6 {[%clk 0:02:58.3]} 3. d4 {[%clk 0:03:00.6]} 3... cxd4 {[%clk
0:02:58.8]} 4. Nxd4 {[%clk 0:03:01.2]} 4... Nf6 {[%clk 0:02:59.2]} 5. Nc3 {[%clk
0:03:01.2]} 5... e6 {[%clk 0:02:59.1]} 6. Ndb5 {[%clk 0:02:59.4]} 6... Bb4
{[%clk 0:02:59.1]} 7. a3 {[%clk 0:02:57]} 7... Bxc3+ {[%clk 0:02:59.2]} 8. Nxc3
{[%clk 0:02:56.3]} 8... d5 {[%clk 0:03:00.1]} 9. exd5 {[%clk 0:02:56.5]} 9...
exd5 {[%clk 0:03:01]} 10. Bd3 {[%clk 0:02:56.6]} 10... O-O {[%clk 0:02:58.8]}
11. O-O {[%clk 0:02:55.6]} 11... Bg4 {[%clk 0:02:58.6]} 12. Qd2 {[%clk 0:02:49]}
12... Re8 {[%clk 0:02:48.5]} 13. Qg5 {[%clk 0:02:46]} 13... Ne5 {[%clk
0:02:28.9]} 14. Bb5 {[%clk 0:02:44.4]} 14... h6 {[%clk 0:02:22.6]} 15. Qh4
{[%clk 0:02:18.2]} 15... Ng6 {[%clk 0:02:19.8]} 16. Qg3 {[%clk 0:02:14.1]} 16...
Re7 {[%clk 0:02:12.4]} 17. Bd2 {[%clk 0:02:04.3]} 17... a6 {[%clk 0:02:10.3]}
18. Ba4 {[%clk 0:01:56.5]} 18... d4 {[%clk 0:02:03.4]} 19. Nb1 {[%clk 0:01:43]}
19... Rc8 {[%clk 0:01:55.8]} 20. Bb4 {[%clk 0:01:38.8]} 20... Re2 {[%clk
0:01:45.8]} 21. Nd2 {[%clk 0:01:27]} 21... b5 {[%clk 0:01:41.8]} 22. Bb3 {[%clk
0:01:25.4]} 22... a5 {[%clk 0:01:41]} 23. f3 {[%clk 0:01:01.8]} 23... axb4
{[%clk 0:01:34.2]} 24. fxg4 {[%clk 0:01:01.1]} 24... Rxd2 {[%clk 0:01:33.7]} 25.
axb4 {[%clk 0:00:57.4]} 25... Qb6 {[%clk 0:01:21.3]} 26. Kh1 {[%clk 0:00:55.7]}
26... Rf8 {[%clk 0:01:14.8]} 27. Rae1 {[%clk 0:00:40.7]} 27... Qc6 {[%clk
0:01:04.3]} 28. g5 {[%clk 0:00:36.1]} 28... Nh5 {[%clk 0:00:26.5]} 29. Qg4
{[%clk 0:00:24.5]} 29... Nhf4 {[%clk 0:00:24]} 30. Rg1 {[%clk 0:00:20]} 30... h5
{[%clk 0:00:22.1]} 31. Qf3 {[%clk 0:00:16]} 31... Qxf3 {[%clk 0:00:21]} 32. gxf3
{[%clk 0:00:16.1]} 32... Nh3 {[%clk 0:00:21.3]} 33. Rg2 {[%clk 0:00:15.3]} 33...
Nf2+ {[%clk 0:00:19.2]} 34. Kg1 {[%clk 0:00:14.9]} 34... Nf4 {[%clk 0:00:19.5]}
35. Rxf2 {[%clk 0:00:14.1]} 35... Nh3+ {[%clk 0:00:19.5]} 36. Kg2 {[%clk
0:00:12.4]} 36... Nxf2 {[%clk 0:00:18.1]} 37. Kg3 {[%clk 0:00:12]} 37... h4+
{[%clk 0:00:17.3]} 38. Kxh4 {[%clk 0:00:11.4]} 38... g6 {[%clk 0:00:15.6]} 39.
Kg3 {[%clk 0:00:10.7]} 39... Kg7 {[%clk 0:00:15.3]} 40. Rf1 {[%clk 0:00:10.8]}
40... d3 {[%clk 0:00:11.5]} 41. Rxf2 {[%clk 0:00:08]} 41... dxc2 {[%clk
0:00:08.9]} 42. Bxc2 {[%clk 0:00:07.7]} 42... Rxf2 {[%clk 0:00:08.8]} 43. Kxf2
{[%clk 0:00:07.6]} 43... Rc8 {[%clk 0:00:09]} 44. Bd3 {[%clk 0:00:06.9]} 44...
Rd8 {[%clk 0:00:06.6]} 45. Bxb5 {[%clk 0:00:06.9]} 45... Rd2+ {[%clk 0:00:06.4]}
46. Ke3 {[%clk 0:00:04.5]} 46... Rxb2 {[%clk 0:00:07.3]} 47. Bc6 {[%clk
0:00:03.2]} 47... Rxb4 {[%clk 0:00:07.9]} 48. Be4 {[%clk 0:00:03.7]} 48... Rb2
{[%clk 0:00:07]} 49. h3 {[%clk 0:00:02.3]} 49... Rh2 {[%clk 0:00:06.7]} 50. Kf4
{[%clk 0:00:02.6]} 50... Rxh3 {[%clk 0:00:06.9]} 51. Kg4 {[%clk 0:00:02.7]}
51... Rh2 {[%clk 0:00:07.1]} 52. Kg3 {[%clk 0:00:02.9]} 52... Rb2 {[%clk
0:00:06.7]} 53. Kg4 {[%clk 0:00:03.1]} 53... Rb5 {[%clk 0:00:06]} 54. Kg3 {[%clk
0:00:03.4]} 54... Rxg5+ {[%clk 0:00:05.5]} 55. Kf4 {[%clk 0:00:04]} 55... Rc5
{[%clk 0:00:06.4]} 56. Ke3 {[%clk 0:00:04.2]} 56... g5 {[%clk 0:00:06.4]} 57.
Kd4 {[%clk 0:00:03.5]} 57... Ra5 {[%clk 0:00:06.5]} 58. Ke3 {[%clk 0:00:03.6]}
58... f5 {[%clk 0:00:06.6]} 59. Bd3 {[%clk 0:00:02.8]} 59... Kf6 {[%clk
0:00:07]} 60. Kf2 {[%clk 0:00:01.5]} 60... Ra3 {[%clk 0:00:07]} 0-1

[Event "*** Titled Tuesday Blitz"]
[Site "Chess.com"]
[Date "2021.03.09"]
[Round "10"]
[White "enriquetejedor"]
[Black "ri4mi"]
[Result "1-0"]
[WhiteElo "2553"]
[BlackElo "2436"]
[TimeControl "180+1"]
[EndTime "12:00:40 PST"]
[Termination "enriquetejedor won by resignation"]

1. e3 {[%clk 0:02:34.6]} 1... Nf6 {[%clk 0:03:00]} 2. g4 {[%clk 0:02:33.2]} 2...
d5 {[%clk 0:02:59.3]} 3. g5 {[%clk 0:02:30.9]} 3... Ne4 {[%clk 0:02:59.3]} 4. h4
{[%clk 0:02:28.9]} 4... e5 {[%clk 0:02:58.8]} 5. Bg2 {[%clk 0:02:26]} 5... h6
{[%clk 0:02:48]} 6. d3 {[%clk 0:02:26]} 6... Nc5 {[%clk 0:02:40.8]} 7. g6 {[%clk
0:02:08.1]} 7... fxg6 {[%clk 0:02:34.3]} 8. b3 {[%clk 0:02:07.3]} 8... Be6
{[%clk 0:02:28.8]} 9. Bb2 {[%clk 0:02:06.2]} 9... Nc6 {[%clk 0:02:27.6]} 10. Nd2
{[%clk 0:02:04.6]} 10... Bd6 {[%clk 0:02:26.3]} 11. a3 {[%clk 0:02:02.3]} 11...
a5 {[%clk 0:02:25.2]} 12. Ndf3 {[%clk 0:01:55.7]} 12... Qe7 {[%clk 0:02:08.2]}
13. d4 {[%clk 0:01:53.2]} 13... exd4 {[%clk 0:02:04.2]} 14. Nxd4 {[%clk
0:01:52.9]} 14... Nxd4 {[%clk 0:02:03.2]} 15. Qxd4 {[%clk 0:01:53.8]} 15... c6
{[%clk 0:01:50.1]} 16. Qxg7 {[%clk 0:01:53.2]} 16... Qxg7 {[%clk 0:01:43.2]} 17.
Bxg7 {[%clk 0:01:38.8]} 17... Rh7 {[%clk 0:01:41.8]} 18. Bb2 {[%clk 0:01:39.3]}
18... O-O-O {[%clk 0:01:40.7]} 19. O-O-O {[%clk 0:01:37.9]} 19... Rf7 {[%clk
0:01:39.6]} 20. f3 {[%clk 0:01:32.6]} 20... Re8 {[%clk 0:01:33.1]} 21. Ne2
{[%clk 0:01:26]} 21... Bf5 {[%clk 0:01:24.8]} 22. e4 {[%clk 0:01:26]} 22... Be6
{[%clk 0:01:00]} 23. Nd4 {[%clk 0:01:24.5]} 23... Bf4+ {[%clk 0:00:57.7]} 24.
Kb1 {[%clk 0:01:22.5]} 24... dxe4 {[%clk 0:00:56]} 25. Nxe6 {[%clk 0:01:21.3]}
25... Rxe6 {[%clk 0:00:53.9]} 26. Bh3 {[%clk 0:01:17.9]} 26... Rf5 {[%clk
0:00:33.6]} 27. h5 {[%clk 0:01:08.5]} 27... Rxh5 {[%clk 0:00:26.7]} 28. Bxe6+
{[%clk 0:00:48.9]} 28... Nxe6 {[%clk 0:00:27.6]} 29. Rxh5 {[%clk 0:00:48.7]}
29... gxh5 {[%clk 0:00:28.5]} 30. fxe4 {[%clk 0:00:49.6]} 30... h4 {[%clk
0:00:28.3]} 31. Rh1 {[%clk 0:00:49.1]} 31... Bg3 {[%clk 0:00:21.9]} 32. Kc1
{[%clk 0:00:48.5]} 32... Ng5 {[%clk 0:00:21]} 33. e5 {[%clk 0:00:48.2]} 33... h3
{[%clk 0:00:20.8]} 34. Kd2 {[%clk 0:00:48.2]} 34... h2 {[%clk 0:00:18.6]} 35.
Ke2 {[%clk 0:00:46.6]} 35... h5 {[%clk 0:00:18.8]} 36. Bd4 {[%clk 0:00:45.4]}
36... h4 {[%clk 0:00:15.2]} 37. Bf2 {[%clk 0:00:45.1]} 37... Kd7 {[%clk
0:00:11.4]} 38. Kf1 {[%clk 0:00:43.5]} 38... Ne4 {[%clk 0:00:08.1]} 39. Bd4
{[%clk 0:00:42.7]} 39... Ke6 {[%clk 0:00:07.9]} 40. Kg2 {[%clk 0:00:43]} 40...
Ng5 {[%clk 0:00:03.6]} 41. Rf1 {[%clk 0:00:40.9]} 41... Ne4 {[%clk 0:00:02.7]}
42. b4 {[%clk 0:00:38.2]} 42... Kd5 {[%clk 0:00:03.6]} 43. Be3 {[%clk
0:00:35.8]} 43... axb4 {[%clk 0:00:03.8]} 44. axb4 {[%clk 0:00:34.7]} 44... Kxe5
{[%clk 0:00:04.4]} 45. c4 {[%clk 0:00:33.6]} 45... Nf6 {[%clk 0:00:02.3]} 46. b5
{[%clk 0:00:28.4]} 46... Ng4 {[%clk 0:00:02.5]} 47. Bb6 {[%clk 0:00:23.6]} 47...
cxb5 {[%clk 0:00:02.7]} 48. cxb5 {[%clk 0:00:22.6]} 48... Kd5 {[%clk 0:00:03.3]}
49. Rf7 {[%clk 0:00:20.2]} 49... Ne5 {[%clk 0:00:03]} 50. Rxb7 {[%clk
0:00:16.1]} 50... Nd3 {[%clk 0:00:03.9]} 51. Kh1 {[%clk 0:00:11.9]} 51... Nf4
{[%clk 0:00:04.1]} 52. Be3 {[%clk 0:00:10.6]} 52... Ne6 {[%clk 0:00:03.6]} 53.
Rd7+ {[%clk 0:00:09.4]} 53... Ke4 {[%clk 0:00:02.6]} 54. Ba7 {[%clk 0:00:07.1]}
54... Ng5 {[%clk 0:00:01.9]} 55. b6 {[%clk 0:00:06.9]} 55... Kf5 {[%clk
0:00:01.4]} 56. b7 {[%clk 0:00:07]} 56... Ne6 {[%clk 0:00:02.3]} 57. b8=Q {[%clk
0:00:05.6]} 57... Bxb8 {[%clk 0:00:03.2]} 58. Bxb8 {[%clk 0:00:05.8]} 58... Nc5
{[%clk 0:00:03.7]} 59. Rd5+ {[%clk 0:00:05.4]} 59... Ke4 {[%clk 0:00:03.4]} 60.
Rxc5 {[%clk 0:00:05.9]} 1-0

[Event "*** Titled Tuesday Blitz"]
[Site "Chess.com"]
[Date "2021.03.09"]
[Round "10"]
[White "suyu28"]
[Black "jraosam"]
[Result "1-0"]
[WhiteElo "2581"]
[BlackElo "1934"]
[TimeControl "180+1"]
[EndTime "12:00:41 PST"]
[Termination "suyu28 won by checkmate"]

1. d4 {[%clk 0:02:59.5]} 1... e5 {[%clk 0:02:54.3]} 2. dxe5 {[%clk 0:02:57.2]}
2... Nc6 {[%clk 0:02:46]} 3. Nf3 {[%clk 0:02:50.4]} 3... Qe7 {[%clk 0:02:41.3]}
4. Nc3 {[%clk 0:02:42.5]} 4... Nxe5 {[%clk 0:02:34.9]} 5. Nd5 {[%clk 0:02:39.7]}
5... Nxf3+ {[%clk 0:02:29.2]} 6. gxf3 {[%clk 0:02:37.5]} 6... Qd8 {[%clk
0:02:20.1]} 7. Bf4 {[%clk 0:02:34.8]} 7... d6 {[%clk 0:02:13.9]} 8. e3 {[%clk
0:02:29.9]} 8... Be6 {[%clk 0:02:12]} 9. Qd2 {[%clk 0:02:14.9]} 9... Nf6 {[%clk
0:02:03.3]} 10. Bc4 {[%clk 0:02:12.4]} 10... Nh5 {[%clk 0:01:54.9]} 11. Bb3
{[%clk 0:01:54.5]} 11... Nxf4 {[%clk 0:01:45.7]} 12. Nxf4 {[%clk 0:01:53.5]}
12... Qf6 {[%clk 0:01:40.8]} 13. O-O-O {[%clk 0:01:42.8]} 13... Bxb3 {[%clk
0:01:35.7]} 14. axb3 {[%clk 0:01:42.2]} 14... a5 {[%clk 0:01:29.2]} 15. Qe2
{[%clk 0:01:36.6]} 15... c6 {[%clk 0:01:24.2]} 16. Qc4 {[%clk 0:01:24.9]} 16...
d5 {[%clk 0:01:12.1]} 17. Qa4 {[%clk 0:01:10.5]} 17... b5 {[%clk 0:01:07.4]} 18.
Qd4 {[%clk 0:01:01.6]} 18... Be7 {[%clk 0:01:01.2]} 19. Rhg1 {[%clk 0:00:57.5]}
19... O-O {[%clk 0:00:51.7]} 20. Qxf6 {[%clk 0:00:53.6]} 20... Bxf6 {[%clk
0:00:51.6]} 21. Nh5 {[%clk 0:00:49.6]} 21... Kh8 {[%clk 0:00:49.4]} 22. Nxf6
{[%clk 0:00:46.3]} 22... gxf6 {[%clk 0:00:49.1]} 23. e4 {[%clk 0:00:42.7]} 23...
dxe4 {[%clk 0:00:37.7]} 24. fxe4 {[%clk 0:00:40.9]} 24... a4 {[%clk 0:00:32.4]}
25. b4 {[%clk 0:00:28.5]} 25... Rad8 {[%clk 0:00:27.8]} 26. c3 {[%clk
0:00:22.5]} 26... Rxd1+ {[%clk 0:00:22.5]} 27. Rxd1 {[%clk 0:00:22.2]} 27... Re8
{[%clk 0:00:15.9]} 28. f3 {[%clk 0:00:19.5]} 28... Kg7 {[%clk 0:00:10]} 29. Rg1+
{[%clk 0:00:10.3]} 29... Kf8 {[%clk 0:00:08.9]} 30. Kd2 {[%clk 0:00:10.5]} 30...
Rd8+ {[%clk 0:00:08.2]} 31. Ke3 {[%clk 0:00:08.5]} 31... Rd6 {[%clk 0:00:09.1]}
32. h4 {[%clk 0:00:05.1]} 32... Re6 {[%clk 0:00:10]} 33. h5 {[%clk 0:00:04.5]}
33... f5 {[%clk 0:00:10.3]} 34. Kf4 {[%clk 0:00:02.9]} 34... fxe4 {[%clk
0:00:11.2]} 35. fxe4 {[%clk 0:00:03.3]} 35... Rf6+ {[%clk 0:00:09.7]} 36. Ke5
{[%clk 0:00:03.7]} 36... Rf2 {[%clk 0:00:09.4]} 37. Rb1 {[%clk 0:00:03.1]} 37...
Rh2 {[%clk 0:00:08]} 38. Kd6 {[%clk 0:00:03.4]} 38... Rxh5 {[%clk 0:00:08.2]}
39. Kxc6 {[%clk 0:00:03.9]} 39... Rh4 {[%clk 0:00:08.5]} 40. e5 {[%clk
0:00:03.4]} 40... Rh5 {[%clk 0:00:06.9]} 41. Re1 {[%clk 0:00:03]} 41... Rh6+
{[%clk 0:00:06.2]} 42. Kxb5 {[%clk 0:00:03]} 42... Re6 {[%clk 0:00:06.9]} 43.
Kc5 {[%clk 0:00:01.7]} 43... f6 {[%clk 0:00:04.9]} 44. Kd5 {[%clk 0:00:02.2]}
44... Rxe5+ {[%clk 0:00:04.5]} 45. Rxe5 {[%clk 0:00:03.1]} 45... fxe5 {[%clk
0:00:04.4]} 46. Kxe5 {[%clk 0:00:04]} 46... h5 {[%clk 0:00:04]} 47. b5 {[%clk
0:00:04.2]} 47... h4 {[%clk 0:00:04.2]} 48. Kf4 {[%clk 0:00:04.9]} 48... h3
{[%clk 0:00:03.9]} 49. Kg3 {[%clk 0:00:05.4]} 49... h2 {[%clk 0:00:04.8]} 50.
Kxh2 {[%clk 0:00:05.7]} 50... Ke8 {[%clk 0:00:02.9]} 51. Kg3 {[%clk 0:00:06]}
51... Kd8 {[%clk 0:00:03.8]} 52. Kf4 {[%clk 0:00:06.4]} 52... Kc7 {[%clk
0:00:04.4]} 53. Ke5 {[%clk 0:00:06.9]} 53... Kb6 {[%clk 0:00:05.3]} 54. c4
{[%clk 0:00:06.7]} 54... Kc5 {[%clk 0:00:05.3]} 55. Ke6 {[%clk 0:00:06.9]} 55...
Kb6 {[%clk 0:00:04.5]} 56. Kd6 {[%clk 0:00:06.6]} 56... Ka5 {[%clk 0:00:05.3]}
57. Kc5 {[%clk 0:00:06.2]} 57... a3 {[%clk 0:00:04.1]} 58. bxa3 {[%clk
0:00:07.1]} 58... Ka4 {[%clk 0:00:03.1]} 59. b6 {[%clk 0:00:08]} 59... Kxa3
{[%clk 0:00:03.5]} 60. b7 {[%clk 0:00:08.9]} 60... Ka4 {[%clk 0:00:03.8]} 61.
b8=Q {[%clk 0:00:09.4]} 61... Ka3 {[%clk 0:00:04.4]} 62. Kd4 {[%clk 0:00:09.2]}
62... Ka2 {[%clk 0:00:05.3]} 63. Kc3 {[%clk 0:00:09.4]} 63... Ka1 {[%clk
0:00:05.3]} 64. Qb2# {[%clk 0:00:09.4]} 1-0